bitfinex-derivatives/quotes_BTCF0:USTF0_20251011
["timestamp","ask_amount","ask_price","bid_price","bid_amount"]
[1760150307332,0.92116249,112510.0,112500.0,0.14449]
[1760150307538,0.97018599,112510.0,112500.0,0.5940722]
[1760150307733,0.03284282,112510.0,112500.0,0.54449]
[1760150307937,0.03284282,112510.0,112500.0,0.9940722]
[1760150308138,0.001,112510.0,112500.0,0.9940722]
[1760150308334,0.03184282,112530.0,112500.0,0.9940722]
[1760150308335,0.03184282,112530.0,112520.0,0.1021664]
[1760150308542,0.03184282,112540.0,112530.0,0.1232485]
[1760150308736,0.23821714,112540.0,112530.0,0.6040485]
[1760150308936,0.05412282,112540.0,112530.0,0.51529]
[1760150309136,0.43088811,112540.0,112530.0,0.15449]
[1760150310139,0.0540913,112540.0,112530.0,0.15449]
[1760150310336,0.02228,112540.0,112530.0,0.15449]
[1760150310541,0.38308,112540.0,112530.0,0.15449]
[1760150311240,0.4718306,112540.0,112530.0,0.15449]
[1760150311438,1.64281234,112540.0,112530.0,0.12]
[1760150311640,1.0201119,112540.0,112530.0,0.12]
[1760150311938,0.73412076,112540.0,112530.0,0.03449]
[1760150312135,0.73412076,112540.0,112530.0,0.16449]
[1760150312136,0.37332076,112540.0,112530.0,0.16449]
[1760150312339,0.40513206,112540.0,112530.0,0.16449]
[1760150312536,0.37332076,112540.0,112530.0,0.16449]
[1760150312747,0.46207136,112540.0,112530.0,0.03449]
[1760150313042,0.0887585,112530.0,112520.0,0.3742]
[1760150313241,0.1110543,112510.0,112500.0,0.39529]
[1760150313542,0.1110543,112510.0,112500.0,0.08563539]
[1760150313543,0.4845743,112510.0,112500.0,0.08563539]
[1760150313739,0.1237743,112510.0,112500.0,0.08563539]
[1760150313935,0.3958,112510.0,112500.0,0.08563539]
[1760150314139,0.8845743,112510.0,112500.0,0.08563539]
[1760150314437,0.9563856,112510.0,112500.0,0.08563539]
[1760150314643,0.02228,112480.0,112470.0,0.60529]
[1760150314843,0.02228,112480.0,112470.0,0.5440958]
[1760150315044,0.72356076,112500.0,112470.0,0.5440958]
[1760150315345,0.02228,112490.0,112480.0,0.4840879]
[1760150315545,0.02228,112500.0,112490.0,0.03449]
[1760150315742,0.02228,112500.0,112490.0,0.13109]
[1760150315743,0.3958,112500.0,112490.0,0.13109]
[1760150315939,0.3958,112500.0,112490.0,0.11]
[1760150316140,0.8845822,112500.0,112490.0,0.11]
[1760150316342,0.3958,112500.0,112490.0,0.13109]
[1760150317544,0.3958,112500.0,112490.0,0.13016139]
[1760150317744,0.4845822,112500.0,112490.0,0.10907139]
[1760150318144,0.3958,112500.0,112490.0,0.13016139]
[1760150318345,0.4845822,112500.0,112490.0,0.10907139]
[1760150318848,0.4845822,112500.0,112490.0,0.09860474]
[1760150318849,1.4245822,112500.0,112490.0,0.09860474]
[1760150319244,1.4563935,112500.0,112490.0,0.09860474]
[1760150319843,1.0563935,112500.0,112490.0,0.09860474]
[1760150320046,0.8276113,112500.0,112490.0,0.09860474]
[1760150320550,0.035,112500.0,112490.0,0.12032474]
[1760150321747,0.8845822,112500.0,112490.0,0.09860474]
[1760150322049,1.1463935,112500.0,112490.0,0.09860474]
[1760150322245,0.9163935,112500.0,112490.0,0.07711615]
[1760150322548,0.03435,112470.0,112460.0,0.55261238]
[1760150322741,0.03435,112470.0,112460.0,0.09009238]
[1760150323145,0.03435,112470.0,112460.0,0.87261238]
[1760150323146,0.02124,112470.0,112460.0,0.87261238]
[1760150323448,0.04326834,112470.0,112460.0,0.47261238]
[1760150323750,0.03015834,112470.0,112460.0,0.97472608]
[1760150324150,0.03015834,112470.0,112460.0,0.97572608]
[1760150324548,0.75541032,112500.0,112470.0,0.1238258]
[1760150324849,0.02124,112490.0,112480.0,0.03502]
[1760150325040,0.02124,112490.0,112480.0,0.13172]
[1760150325041,0.03435,112490.0,112480.0,0.13172]
[1760150325339,0.06619956,112490.0,112480.0,0.11]
[1760150325544,0.88394,112490.0,112480.0,0.11]
[1760150325854,0.82699956,112490.0,112480.0,0.11]
[1760150326050,0.80415206,112490.0,112480.0,0.11]
[1760150326353,0.40415206,112490.0,112480.0,0.11]
[1760150326550,0.04335206,112490.0,112480.0,0.11]
[1760150327548,0.40415206,112490.0,112480.0,0.11]
[1760150328054,0.40515206,112490.0,112480.0,0.11]
[1760150329252,0.04435206,112490.0,112480.0,0.5813179]
[1760150329443,0.03124206,112490.0,112480.0,0.5813179]
[1760150330049,0.03124206,112490.0,112480.0,0.5946279]
[1760150330351,0.40575956,112510.0,112480.0,0.9946279]
[1760150330561,0.38337,112510.0,112500.0,0.1237722]
[1760150330754,0.02257,112510.0,112500.0,0.5945722]
[1760150331056,0.02257,112510.0,112500.0,0.9945722]
[1760150331253,0.38572076,112520.0,112510.0,0.1104543]
[1760150331447,0.43316045,112520.0,112510.0,0.6045643]
[1760150331648,0.02257,112520.0,112510.0,0.6045643]
[1760150332047,0.42392045,112530.0,112510.0,1.0045643]
[1760150332355,0.02257,112530.0,112520.0,0.39579]
[1760150332548,0.44649045,112530.0,112520.0,0.52248]
[1760150333056,0.00871731,112530.0,112520.0,1.0245564]
[1760150333254,0.02257,112540.0,112530.0,0.03499]
[1760150333560,0.15311383,112540.0,112530.0,1.0245485]
[1760150333851,0.0312971,112540.0,112530.0,1.0245485]
[1760150334151,0.0087271,112540.0,112530.0,1.0245485]
[1760150334345,0.01333,112560.0,112540.0,0.1237336]
[1760150334553,0.0359,112560.0,112550.0,0.02168]
[1760150334756,0.44649045,112560.0,112550.0,0.51248]
[1760150334953,0.51742866,112560.0,112550.0,0.51248]
[1760150335362,1.23589544,112560.0,112550.0,0.51248]
[1760150335657,0.44649045,112560.0,112550.0,0.4908]
[1760150336152,0.59095888,112560.0,112550.0,0.4908]
[1760150337055,0.59195888,112560.0,112550.0,0.4908]
[1760150337660,0.18136843,112560.0,112550.0,0.51248]
[1760150337957,0.16803843,112560.0,112550.0,1.0145327]
[1760150338553,0.16803843,112560.0,112550.0,0.92579]
[1760150339055,0.88671813,112560.0,112550.0,0.92579]
[1760150339258,0.95920356,112560.0,112550.0,0.92579]
[1760150339853,1.32000356,112560.0,112550.0,0.55168]
[1760150340353,1.33333356,112560.0,112550.0,0.13]
[1760150340558,1.74392401,112560.0,112550.0,0.13]
[1760150340957,1.73059401,112560.0,112550.0,0.16499]
[1760150341155,0.95920356,112560.0,112550.0,0.2537416]
[1760150341360,0.95920356,112560.0,112550.0,0.92579]
[1760150341756,0.95920356,112560.0,112550.0,0.56499]
[1760150342063,0.97253356,112560.0,112550.0,0.15168]
[1760150342260,0.95920356,112560.0,112550.0,0.15168]
[1760150342856,0.95920356,112560.0,112550.0,0.16499]
[1760150343462,0.97253356,112560.0,112550.0,0.15168]
[1760150343663,0.97253356,112560.0,112550.0,0.16499]
[1760150343664,0.95920356,112560.0,112550.0,0.16499]
[1760150343860,0.95820356,112560.0,112550.0,0.16499]
[1760150344058,0.95920356,112560.0,112550.0,0.16499]
[1760150344258,0.93663356,112560.0,112550.0,0.6537416]
[1760150344559,0.20888994,112560.0,112550.0,1.0145416]
[1760150344866,0.01333,112610.0,112590.0,0.1237101]
[1760150345057,0.09222079,112610.0,112600.0,0.4845022]
[1760150345363,0.13549251,112620.0,112600.0,0.6145022]
[1760150345569,0.02257,112620.0,112610.0,0.484492]
[1760150345753,0.79396045,112630.0,112620.0,0.02168]
[1760150345953,0.44203788,112630.0,112620.0,0.15168]
[1760150346156,0.44203788,112630.0,112620.0,0.2536864]
[1760150346364,0.07251874,112630.0,112620.0,1.0144864]
[1760150346560,0.81657001,112660.0,112630.0,0.1019947]
[1760150346762,0.78472045,112660.0,112630.0,0.5927947]
[1760150346967,0.78472045,112660.0,112650.0,0.03499]
[1760150346968,0.86448401,112660.0,112650.0,0.03499]
[1760150347263,0.44649045,112660.0,112650.0,0.12]
[1760150347660,0.80729045,112660.0,112650.0,0.12]
[1760150347867,0.3967,112660.0,112650.0,0.12]
[1760150348065,1.30673284,112660.0,112650.0,0.12]
[1760150348364,0.02199,112650.0,112640.0,0.02187]
[1760150348560,0.02199,112650.0,112640.0,0.51267]
[1760150348761,0.02199,112650.0,112640.0,0.6151207]
[1760150348968,1.13060895,112660.0,112640.0,0.6151207]
[1760150349264,0.02199,112650.0,112640.0,0.6151207]
[1760150350162,1.33257816,112660.0,112640.0,0.6151207]
[1760150350465,0.002,112650.0,112640.0,0.6151207]
[1760150350661,0.002,112650.0,112640.0,1.3759207]
[1760150350962,0.002,112650.0,112640.0,0.9759207]
[1760150351361,0.02399,112650.0,112640.0,0.52644]
[1760150351667,0.002,112650.0,112640.0,0.6151207]
[1760150351860,0.002,112650.0,112640.0,0.88724]
[1760150352163,0.02399,112650.0,112640.0,1.28724]
[1760150352467,0.02199,112650.0,112640.0,1.3759207]
[1760150352655,0.02199,112650.0,112640.0,0.9759207]
[1760150353266,0.02399,112650.0,112640.0,0.9759207]
[1760150353467,0.02399,112650.0,112640.0,0.88724]
[1760150353666,0.02399,112650.0,112640.0,0.52644]
[1760150353963,1.20871045,112650.0,112640.0,0.13]
[1760150354270,1.80738325,112650.0,112640.0,0.13]
[1760150354463,1.80738325,112650.0,112640.0,0.01052147]
[1760150354967,0.03532,112620.0,112590.0,0.4632875]
[1760150355168,0.03532,112620.0,112590.0,0.6151575]
[1760150355169,0.02199,112600.0,112590.0,0.6151575]
[1760150355362,0.43258045,112600.0,112590.0,0.51267]
[1760150355565,0.80671045,112600.0,112590.0,0.13]
[1760150355968,0.01333,112590.0,112560.0,0.1025218]
[1760150356158,0.38279,112570.0,112560.0,0.13187]
[1760150356664,0.38279,112570.0,112560.0,0.2206253]
[1760150356867,0.02199,112570.0,112560.0,0.2343953]
[1760150357169,0.3608,112570.0,112560.0,0.6343953]
[1760150357361,1.08584657,112580.0,112570.0,0.1243873]
[1760150357566,0.38279,112580.0,112570.0,0.2543873]
[1760150357760,0.38279,112580.0,112570.0,0.15187]
[1760150357959,0.38279,112580.0,112570.0,0.13]
[1760150357960,0.39612,112580.0,112570.0,0.13]
[1760150358566,0.38279,112580.0,112570.0,0.2406169]
[1760150358970,0.39187142,112580.0,112570.0,0.2406169]
[1760150359273,0.43520142,112580.0,112570.0,0.13]
[1760150360175,0.84579187,112580.0,112570.0,0.15187]
[1760150360370,0.98139932,112580.0,112570.0,0.15187]
[1760150360574,0.98139932,112580.0,112560.0,0.0887516]
[1760150360768,0.17468887,112580.0,112570.0,0.0887469]
[1760150360972,0.13560745,112580.0,112570.0,0.2443869]
[1760150361174,1.48462935,112590.0,112570.0,0.2443869]
[1760150361473,1.50661935,112590.0,112580.0,0.1106135]
[1760150361666,1.50661935,112590.0,112580.0,0.2306135]
[1760150362070,1.50661935,112590.0,112580.0,0.12]
[1760150362071,2.14994935,112590.0,112580.0,0.12]
[1760150362274,2.14994935,112590.0,112560.0,0.02187]
[1760150362275,0.02199,112570.0,112560.0,0.02187]
[1760150362574,0.79338045,112570.0,112560.0,0.2306292]
[1760150362763,0.79338045,112570.0,112560.0,0.2443992]
[1760150362963,0.77139045,112570.0,112560.0,0.6443992]
[1760150363163,0.41059045,112570.0,112560.0,0.6443992]
[1760150363376,0.79338045,112570.0,112560.0,0.2443992]
[1760150363567,0.79338045,112570.0,112560.0,0.2306292]
[1760150365471,0.86322624,112570.0,112560.0,0.2306292]
[1760150366175,0.45263579,112570.0,112560.0,0.2443992]
[1760150366574,0.87596579,112570.0,112560.0,0.12]
[1760150366972,0.87596579,112570.0,112540.0,8.332e-05]
[1760150366973,1.28655624,112570.0,112540.0,8.332e-05]
[1760150367177,1.16751045,112550.0,112540.0,0.12008332]
[1760150367380,1.65751045,112550.0,112540.0,0.12008332]
[1760150367975,1.65751045,112550.0,112540.0,0.20885992]
[1760150368172,1.29671045,112550.0,112540.0,0.23072992]
[1760150368573,1.28338045,112550.0,112540.0,0.23072992]
[1760150368774,1.65751045,112550.0,112540.0,0.12008332]
[1760150369069,2.05751045,112550.0,112540.0,0.12008332]
[1760150369269,1.99751045,112550.0,112540.0,0.20885962]
[1760150369676,1.59751045,112550.0,112540.0,0.20885962]
[1760150369979,1.16418045,112550.0,112540.0,0.24449962]
[1760150370270,1.17751045,112550.0,112540.0,0.20885962]
[1760150370775,0.43279,112550.0,112540.0,0.24449962]
[1760150370975,0.79338045,112560.0,112550.0,0.0887685]
[1760150371167,0.41059045,112560.0,112550.0,0.2444085]
[1760150371366,0.84123624,112570.0,112560.0,0.1244006]
[1760150371575,0.86322624,112570.0,112560.0,0.2444006]
[1760150371777,0.86322624,112570.0,112560.0,0.1244006]
[1760150372071,0.86322624,112570.0,112560.0,0.2644006]
[1760150372272,0.86322624,112570.0,112560.0,0.16187]
[1760150372273,0.87655624,112570.0,112560.0,0.16187]
[1760150372580,0.02199,112550.0,112540.0,0.12449942]
[1760150372771,0.79338045,112550.0,112540.0,0.23449942]
[1760150373167,1.16751045,112550.0,112540.0,0.11008332]
[1760150373373,1.53751045,112550.0,112540.0,0.11008332]
[1760150373675,2.16627915,112550.0,112540.0,0.11008332]
[1760150373876,2.16627965,112550.0,112540.0,8.332e-05]
[1760150374176,1.7556892,112550.0,112540.0,8.332e-05]
[1760150374377,1.26692,112550.0,112540.0,0.12008332]
[1760150374580,1.67751045,112550.0,112540.0,0.12008332]
[1760150374983,1.67751045,112550.0,112540.0,8.332e-05]
[1760150375278,1.76627975,112550.0,112540.0,8.332e-05]
[1760150375476,2.16727975,112550.0,112540.0,8.332e-05]
[1760150375980,0.03532,112520.0,112500.0,0.1025726]
[1760150376181,0.38279,112510.0,112500.0,0.2344426]
[1760150376675,0.38279,112510.0,112500.0,0.6344426]
[1760150376880,0.79338045,112540.0,112530.0,0.1244251]
[1760150377080,0.001,112550.0,112540.0,0.1244172]
[1760150377280,0.00106584,112550.0,112540.0,0.6152172]
[1760150377479,0.00106584,112550.0,112540.0,1.0152172]
[1760150377677,4e-08,112550.0,112540.0,1.0152172]
[1760150377980,0.06984579,112570.0,112560.0,0.03564]
[1760150378181,0.6965413,112590.0,112580.0,0.1240256]
[1760150378375,0.41059045,112600.0,112590.0,0.1240177]
[1760150378574,0.41059045,112600.0,112590.0,0.2340177]
[1760150378776,0.77139045,112600.0,112590.0,0.2340177]
[1760150378975,0.90701374,112600.0,112590.0,0.2340177]
[1760150379172,0.92888374,112600.0,112590.0,0.2340177]
[1760150379379,0.92888374,112600.0,112590.0,0.1413977]
[1760150379676,0.92988374,112600.0,112590.0,0.1413977]
[1760150380075,0.51929329,112600.0,112590.0,0.1540177]
[1760150380282,0.49742329,112600.0,112590.0,0.1540177]
[1760150380485,0.56911698,112600.0,112590.0,0.1540177]
[1760150380673,0.20831698,112600.0,112590.0,0.1540177]
[1760150381186,0.38367,112600.0,112590.0,0.1540177]
[1760150381978,0.79426045,112600.0,112590.0,0.1413977]
[1760150383185,0.79426045,112600.0,112590.0,0.1540177]
[1760150383582,0.001,112600.0,112590.0,0.1540177]
[1760150383782,0.00986604,112600.0,112590.0,0.1540177]
[1760150384384,0.03173604,112600.0,112590.0,0.1540177]
[1760150384585,1.5810123,112600.0,112590.0,0.1540177]
[1760150384785,0.79426045,112600.0,112590.0,0.1540177]
[1760150385180,0.3618,112600.0,112590.0,0.1540177]
[1760150385488,0.001,112600.0,112590.0,0.9148177]
[1760150387184,0.03621819,112600.0,112590.0,0.9148177]
[1760150387384,0.73598316,112650.0,112640.0,0.1113584]
[1760150387578,0.7041336,112650.0,112640.0,0.2313584]
[1760150387785,0.44330811,112660.0,112650.0,0.1113506]
[1760150387984,0.0347,112660.0,112650.0,0.2513506]
[1760150388188,0.37363,112670.0,112660.0,0.0886827]
[1760150388393,0.07880858,112670.0,112660.0,0.2513427]
[1760150388682,0.50471567,112680.0,112670.0,0.1113347]
[1760150388892,0.52658567,112680.0,112670.0,0.14266]
[1760150389393,0.92658567,112680.0,112670.0,0.12]
[1760150389784,0.51375567,112680.0,112670.0,0.2297547]
[1760150389989,0.49188567,112680.0,112670.0,0.14108]
[1760150390296,0.39693,112680.0,112670.0,0.14108]
[1760150390899,0.40604304,112680.0,112670.0,0.12]
[1760150391103,0.40704304,112680.0,112670.0,0.12]
[1760150391295,1.65763349,112680.0,112670.0,0.12]
[1760150391599,1.59573807,112680.0,112670.0,0.12]
[1760150392095,1.26636671,112680.0,112670.0,0.14108]
[1760150392298,1.66636671,112680.0,112670.0,0.12]
[1760150392700,1.75503361,112680.0,112670.0,0.12]
[1760150393193,1.66636671,112680.0,112670.0,0.12]
[1760150393400,1.05045941,112680.0,112670.0,0.14108]
[1760150393599,1.44945941,112680.0,112670.0,0.12]
[1760150394395,1.44945941,112680.0,112640.0,0.0886938]
[1760150394396,0.1022164,112670.0,112640.0,0.0886938]
[1760150394699,0.39693,112650.0,112640.0,0.16108]
[1760150394895,0.39693,112650.0,112640.0,0.2497783]
[1760150395097,0.3608,112650.0,112640.0,0.2626083]
[1760150395401,0.3608,112650.0,112640.0,0.6626083]
[1760150395592,0.74562503,112670.0,112660.0,0.1097626]
[1760150395791,0.39693,112670.0,112660.0,0.2297626]
[1760150396790,0.38339,112670.0,112660.0,0.2297626]
[1760150397191,0.3608,112670.0,112660.0,0.14108]
[1760150397394,0.3608,112670.0,112660.0,0.6433326]
[1760150397694,0.56421637,112680.0,112670.0,0.1147647]
[1760150397894,0.56421637,112680.0,112670.0,0.2347647]
[1760150398199,0.56421637,112680.0,112670.0,1.34425973]
[1760150398200,0.20341637,112680.0,112670.0,1.34425973]
[1760150398394,0.37434,112710.0,112700.0,0.1089111]
[1760150398705,0.37434,112710.0,112700.0,0.2189111]
[1760150399203,0.50566995,112710.0,112700.0,0.13026]
[1760150399399,0.01354,112690.0,112680.0,0.0886626]
[1760150399600,0.01354,112690.0,112680.0,0.2289226]
[1760150400305,0.39693,112690.0,112680.0,0.14026]
[1760150400808,0.39793,112690.0,112680.0,0.2289269]
[1760150401002,0.39793,112690.0,112680.0,0.12]
[1760150401401,0.95652351,112690.0,112680.0,0.12]
[1760150401601,1.78521854,112690.0,112680.0,0.12]
[1760150401798,0.81655954,112690.0,112680.0,0.12]
[1760150402104,1.30521854,112690.0,112680.0,0.12]
[1760150402408,1.43521854,112690.0,112680.0,0.12]
[1760150402705,0.03613,112670.0,112660.0,0.02026]
[1760150403006,0.39693,112670.0,112660.0,0.1489426]
[1760150403601,0.39693,112670.0,112660.0,0.06026]
[1760150404104,0.75773,112670.0,112660.0,0.06026]
[1760150404303,0.75773,112670.0,112660.0,0.1489426]
[1760150404506,0.37434,112680.0,112670.0,0.1089348]
[1760150404808,0.37434,112680.0,112670.0,0.2389348]
[1760150405508,0.39693,112680.0,112670.0,0.2389348]
[1760150405708,0.39693,112680.0,112670.0,0.1089348]
[1760150405907,0.39693,112680.0,112670.0,0.2289348]
[1760150406302,0.39693,112680.0,112670.0,0.14026]
[1760150406510,0.03613,112670.0,112660.0,0.1089427]
[1760150406709,0.39693,112670.0,112660.0,0.15026]
[1760150408203,0.39693,112670.0,112660.0,0.2389427]
[1760150408712,0.39693,112670.0,112660.0,0.15026]
[1760150409304,0.39693,112670.0,112660.0,0.13]
[1760150409501,1.23429983,112670.0,112660.0,0.13]
[1760150409710,1.64429983,112670.0,112660.0,0.13]
[1760150410014,0.55693,112670.0,112660.0,0.09378182]
[1760150410205,0.01369,112660.0,112650.0,0.1089496]
[1760150410511,0.43572,112660.0,112650.0,0.12]
[1760150410711,0.87309773,112660.0,112650.0,0.12]
[1760150411107,1.75309773,112660.0,112650.0,0.12]
[1760150411415,0.03492,112630.0,112620.0,0.1089742]
[1760150411606,0.39572,112630.0,112620.0,0.2389742]
[1760150412005,0.39572,112630.0,112620.0,0.15026]
[1760150412206,0.39572,112630.0,112620.0,0.2389742]
[1760150412406,0.01369,112630.0,112620.0,0.2389742]
[1760150412807,0.37449,112650.0,112640.0,0.1089584]
[1760150413112,0.37449,112650.0,112640.0,0.2389584]
[1760150413309,0.39572,112650.0,112640.0,0.2389584]
[1760150414110,0.5299929,112650.0,112640.0,0.2389584]
[1760150414612,0.5299929,112650.0,112640.0,0.15026]
[1760150415717,0.5299929,112650.0,112640.0,0.2389584]
[1760150416812,0.9299929,112650.0,112640.0,0.2389584]
[1760150417013,0.93880064,112650.0,112640.0,0.2389584]
[1760150417212,0.53880064,112650.0,112640.0,0.2389584]
[1760150418416,0.50849064,112650.0,112640.0,0.2389584]
[1760150418615,0.14308064,112650.0,112640.0,0.2389584]
[1760150418817,0.39572,112660.0,112650.0,0.1119306]
[1760150419011,0.39572,112660.0,112650.0,0.15324]
[1760150419314,0.4844027,112660.0,112650.0,0.02324]
[1760150420220,0.1236184,112640.0,112630.0,0.02324]
[1760150420416,0.4844184,112640.0,112630.0,0.15324]
[1760150421018,0.79572,112640.0,112630.0,0.13]
[1760150421219,0.8844184,112640.0,112630.0,0.13]
[1760150421620,0.79572,112640.0,112630.0,0.13]
[1760150422223,0.8844184,112640.0,112630.0,0.13]
[1760150422816,1.58137817,112640.0,112630.0,0.13]
[1760150423015,1.49267977,112640.0,112630.0,0.13]
[1760150423619,1.49267977,112640.0,112630.0,0.15324]
[1760150423915,1.13187977,112640.0,112630.0,0.2419463]
[1760150424221,1.49267977,112640.0,112630.0,0.2419463]
[1760150424416,1.49267977,112640.0,112630.0,0.15324]
[1760150425212,1.49267977,112640.0,112630.0,0.2419463]
[1760150425419,1.49422556,112640.0,112630.0,0.2419463]
[1760150425924,1.49422556,112640.0,112630.0,0.15324]
[1760150426424,1.49422556,112640.0,112630.0,0.2419463]
[1760150426724,0.71219556,112640.0,112630.0,0.2419463]
[1760150427612,1.09422556,112640.0,112630.0,0.2419463]
[1760150431319,1.18292396,112640.0,112630.0,0.15324]
[1760150431521,1.53161899,112640.0,112630.0,0.13]
[1760150432632,1.44292059,112640.0,112630.0,0.13]
[1760150433426,0.73342556,112640.0,112630.0,0.2419463]
[1760150433628,1.09422556,112640.0,112630.0,0.2419463]
[1760150434933,0.69850556,112640.0,112630.0,0.2419463]
[1760150435833,1.05930556,112640.0,112630.0,0.2419463]
[1760150436031,1.09422556,112640.0,112630.0,0.2419463]
[1760150436427,1.09422556,112640.0,112630.0,0.15324]
[1760150436735,1.09422556,112640.0,112630.0,0.2419463]
[1760150437834,0.69850556,112640.0,112630.0,0.2419463]
[1760150439138,1.09619556,112640.0,112630.0,0.15324]
[1760150440133,1.58489396,112640.0,112630.0,0.13]
[1760150440429,1.97489396,112640.0,112630.0,0.13]
[1760150440632,1.57489396,112640.0,112630.0,0.15161]
[1760150440830,1.23489396,112640.0,112630.0,0.15161]
[1760150442039,1.17793368,112640.0,112630.0,0.15161]
[1760150443540,1.14619556,112640.0,112630.0,0.15161]
[1760150444236,1.17793368,112640.0,112630.0,0.15161]
[1760150444825,1.14619556,112640.0,112630.0,0.2403163]
[1760150445037,1.09619556,112640.0,112630.0,0.15161]
[1760150445637,1.09619556,112640.0,112630.0,0.2403163]
[1760150445834,1.07296556,112640.0,112630.0,0.2403163]
[1760150446138,1.12793368,112640.0,112630.0,0.2403163]
[1760150447032,1.21663208,112640.0,112630.0,0.13]
[1760150447236,1.90532711,112640.0,112630.0,0.13]
[1760150447738,1.14400367,112640.0,112630.0,0.15161]
[1760150448036,1.18400367,112640.0,112630.0,0.13]
[1760150448237,1.16810481,112640.0,112630.0,0.2403163]
[1760150448439,1.12810481,112640.0,112630.0,0.2403163]
[1760150449836,1.12810481,112640.0,112630.0,0.15161]
[1760150450540,0.73041481,112640.0,112630.0,0.2529763]
[1760150450834,0.76449481,112640.0,112630.0,0.2403163]
[1760150451039,1.12529481,112640.0,112630.0,0.2403163]
[1760150451741,1.12529481,112640.0,112630.0,0.15161]
[1760150452536,1.12529481,112640.0,112630.0,0.2403163]
[1760150454036,0.76449481,112640.0,112630.0,0.2403163]
[1760150454238,1.12529481,112640.0,112630.0,0.2403163]
[1760150454638,0.76449481,112640.0,112630.0,0.2403163]
[1760150455441,1.12529481,112640.0,112630.0,0.2403163]
[1760150455941,1.12529481,112640.0,112630.0,0.15161]
[1760150456145,1.09338556,112640.0,112630.0,0.15161]
[1760150457934,1.09338556,112640.0,112630.0,0.2403163]
[1760150460438,2.02376101,112640.0,112630.0,0.13]
[1760150460634,2.52126101,112640.0,112630.0,0.13]
[1760150460943,2.37376101,112640.0,112630.0,0.13]
[1760150461745,2.50376101,112640.0,112630.0,0.13]
[1760150461942,2.02376101,112640.0,112630.0,0.13]
[1760150462133,0.1017542,112620.0,112610.0,0.00088838]
[1760150462439,0.03408,112620.0,112610.0,0.2317821]
[1760150462648,0.39488,112620.0,112610.0,0.2317821]
[1760150463146,0.39498652,112620.0,112610.0,0.2317821]
[1760150463338,0.39498652,112620.0,112610.0,0.2327821]
[1760150463534,0.00010652,112620.0,112610.0,0.2327821]
[1760150463739,0.00010652,112620.0,112610.0,1.03162063]
[1760150464246,0.00010652,112620.0,112610.0,1.0004321]
[1760150464443,0.00010652,112620.0,112610.0,1.4101999]
[1760150466044,0.00010652,112620.0,112610.0,1.0004321]
[1760150467747,0.00010652,112620.0,112610.0,1.03059061]
[1760150467948,0.00010652,112620.0,112610.0,1.03159061]
[1760150472242,0.00010652,112620.0,112610.0,1.44135841]
[1760150474951,0.00154579,112640.0,112630.0,0.02996]
[1760150475148,0.00154579,112640.0,112630.0,0.52076]
[1760150476048,0.0015924,112640.0,112630.0,0.52076]
[1760150476551,0.0015924,112640.0,112630.0,0.6094656]
[1760150477351,0.0015924,112640.0,112630.0,0.2486656]
[1760150477654,0.0015924,112640.0,112630.0,0.6094656]
[1760150478346,0.03190925,112670.0,112640.0,0.1228883]
[1760150478547,0.03190925,112680.0,112670.0,0.1186347]
[1760150478742,0.06993451,112690.0,112680.0,0.1228568]
[1760150478948,0.04462925,112710.0,112700.0,0.0886511]
[1760150479151,0.01272,112710.0,112700.0,0.2317711]
[1760150479346,0.39662,112720.0,112710.0,0.1117632]
[1760150479542,0.01272,112720.0,112710.0,0.5925632]
[1760150479950,0.03582,112720.0,112710.0,0.5925632]
[1760150480156,0.16631416,112720.0,112710.0,0.5925632]
[1760150480453,0.04484028,112720.0,112710.0,0.5925632]
[1760150482154,0.13447568,112720.0,112710.0,0.50392]
[1760150482454,0.0231,112700.0,112690.0,0.02312]
[1760150482649,0.03582,112700.0,112690.0,0.16312]
[1760150482950,0.39662,112700.0,112690.0,0.16312]
[1760150483150,0.4852711,112700.0,112690.0,0.16312]
[1760150483546,0.03582,112700.0,112690.0,0.251779]
[1760150483744,0.03582,112700.0,112690.0,0.612579]
[1760150483951,0.03582,112700.0,112690.0,0.251779]
[1760150484550,0.03582,112710.0,112700.0,0.1117711]
[1760150484855,0.4852632,112710.0,112700.0,0.13312]
[1760150485259,0.39662,112710.0,112700.0,0.13312]
[1760150485957,0.39662,112710.0,112700.0,0.2217711]
[1760150486356,0.01272,112710.0,112700.0,0.2217711]
[1760150486956,1.24414406,112720.0,112710.0,0.1117632]
[1760150487149,1.24414406,112720.0,112710.0,0.2317632]
[1760150487952,0.14248909,112720.0,112710.0,0.2386032]
[1760150488150,0.001,112720.0,112710.0,0.2386032]
[1760150488953,0.001,112720.0,112710.0,0.5994032]
[1760150489152,0.001,112720.0,112710.0,0.2386032]
[1760150489359,0.001,112720.0,112710.0,0.9994032]
[1760150489558,0.001,112720.0,112710.0,1.409171]
[1760150490260,0.00876396,112750.0,112740.0,0.0886197]
[1760150490455,0.1344874,112760.0,112750.0,0.0886118]
[1760150490654,0.01272,112760.0,112750.0,0.5694118]
[1760150490956,0.1452142,112760.0,112750.0,0.5694118]
[1760150491153,0.01272,112760.0,112750.0,0.5694118]
[1760150492150,0.01372,112760.0,112750.0,0.5694118]
[1760150492355,0.001,112760.0,112750.0,0.5694118]
[1760150493053,0.01372,112760.0,112750.0,0.5694118]
[1760150493259,0.01372,112760.0,112750.0,0.9791796]
[1760150493466,0.79494653,112760.0,112750.0,1.3791796]
[1760150493649,0.01589619,112780.0,112770.0,0.0885962]
[1760150493852,0.01589619,112780.0,112770.0,0.628364]
[1760150494052,0.01589619,112780.0,112770.0,0.5793962]
[1760150494252,0.01589619,112780.0,112770.0,0.2185962]
[1760150494462,0.01589619,112780.0,112770.0,0.5793962]
[1760150494963,0.08602991,112780.0,112770.0,0.5793962]
[1760150495756,0.01589619,112780.0,112770.0,0.5793962]
[1760150497660,0.10448449,112780.0,112770.0,0.4908]
[1760150498056,0.1767298,112780.0,112770.0,0.4908]
[1760150498358,0.5606298,112780.0,112770.0,0.13]
[1760150499266,0.0881415,112780.0,112770.0,0.5793962]
[1760150499963,0.21830052,112780.0,112770.0,0.5793962]
[1760150500263,0.01589619,112780.0,112770.0,0.5793962]
[1760150500464,0.46528449,112780.0,112770.0,0.13]
[1760150501253,0.10448449,112780.0,112770.0,0.13]
[1760150501462,0.10448449,112780.0,112770.0,0.2185962]
[1760150501665,0.01589619,112780.0,112770.0,0.2185962]
[1760150502254,0.01589619,112780.0,112770.0,0.989164]
[1760150502465,0.08511593,112780.0,112770.0,1.389164]